{"text_format":"1","workbook":"xlsx","n_sheets":1,"sheets":["Statement of Account"],"not_rendered":{"charts":0,"images":0,"macros":0,"external_links":0,"defined_names":2,"comments":0,"pivot_tables":0},"unopened":[],"bounds":{"document_bytes":16777216,"sheet_cells":100000,"rows_first":2000,"rows_last":500,"rows_between":2000,"halvings":0,"cell_chars":16384,"cell_head_chars":4096},"cells_cut":0,"cells_raw":0,"read":"whole","date_system":"1900"}

{"sheet":"Statement of Account","index":0,"n_rows":56,"n_cols":5,"rows_kept":56,"cut":false,"hidden":false,"merged":[[4,0,4,4],[5,0,5,4],[6,0,6,4],[7,0,7,4],[0,2,0,3],[0,0,0,1],[1,0,1,1],[2,0,2,1],[3,0,3,1]]}
["[Company Name]",null,"Statement Date: ",null,{"$f":"TODAY()","v":"2017-12-01"}]
["[Company Address]",null,null,"Date Due: ","[DATE DUE]"]
["[City, ST  ZIP Code]"]
["[Phone]"]
["STATEMENT OF ACCOUNT"]
["[Customer Name]"]
["[Address]"]
["[City, State  ZIP Code]"]
[]
["DATE","DESCRIPTION","CHARGES","CREDITS","ACCOUNT \nBALANCE"]
[null,"Balance brought forward  ",null,null,56]
["2024-05-12","The Phone Company",500,null,{"$f":"IF(ISERROR(IF(OR(C12,D12),((E11)+C12-D12),)),\"\",IF(OR(C12,D12),((E11)+C12-D12),))","v":556}]
["2024-05-13","Woodgrove Bank",null,250,{"$f":"IF(ISERROR(IF(OR(C13,D13),((E12)+C13-D13),)),\"\",IF(OR(C13,D13),((E12)+C13-D13),))","v":306}]
["2024-05-14","City Power & Light",125,null,431]
[null,null,null,null,""]
[null,null,null,null,""]
[null,null,null,null,""]
[null,null,null,null,""]
[null,null,null,null,""]
[null,null,null,null,""]
[null,null,null,null,""]
[null,null,null,null,""]
[null,null,null,null,""]
[null,null,null,null,""]
[null,null,null,null,""]
[null,null,null,null,""]
[null,null,null,null,""]
[null,null,null,null,""]
[null,null,null,null,""]
[null,null,null,null,""]
[null,null,null,null,""]
[null,null,null,null,""]
[null,null,null,null,""]
[null,null,null,null,""]
[null,null,null,null,""]
[null,null,null,null,""]
[null,null,null,null,""]
[null,null,null,null,""]
[null,null,null,null,""]
[null,null,null,null,""]
[null,null,null,null,""]
[null,null,null,null,""]
[null,null,null,null,""]
[null,null,null,null,""]
[null,null,null,null,""]
[null,null,null,null,""]
[null,null,null,null,""]
[null,null,null,null,""]
[null,null,null,null,""]
[null,null,null,null,""]
[null,null,null,null,""]
[null,null,null,null,""]
[null,null,null,null,""]
[null,null,null,null,{"$f":"IF(ISERROR(IF(OR(C54,D54),((E53)+C54-D54),)),\"\",IF(OR(C54,D54),((E53)+C54-D54),))","v":""}]
[null,null,null,null,{"$f":"IF(ISERROR(IF(OR(C55,D55),((E54)+C55-D55),)),\"\",IF(OR(C55,D55),((E54)+C55-D55),))","v":""}]
[null,null,null,null,{"$f":"IF(ISERROR(IF(OR(C56,D56),((E55)+C56-D56),)),\"\",IF(OR(C56,D56),((E55)+C56-D56),))","v":""}]